[Event "*** Titled Tuesday Blitz"]
[Site "Chess.com"]
[Date "2020.11.24"]
[Round "10"]
[White "champ2005"]
[Black "Sharpchess22"]
[Result "1-0"]
[WhiteElo "3014"]
[BlackElo "2818"]
[TimeControl "180+1"]
[EndTime "12:17:13 PST"]
[Termination "champ2005 won by resignation"]

1. c4 {[%clk 0:03:00.9]} 1... e5 {[%clk 0:02:58.1]} 2. Nc3 {[%clk 0:03:00.9]}
2... Nf6 {[%clk 0:02:58.1]} 3. g3 {[%clk 0:02:59.9]} 3... Nc6 {[%clk 0:02:56.1]}
4. Bg2 {[%clk 0:02:59.3]} 4... Bc5 {[%clk 0:02:54.9]} 5. e3 {[%clk 0:02:58.6]}
5... a6 {[%clk 0:02:52]} 6. Nf3 {[%clk 0:02:57.9]} 6... d6 {[%clk 0:02:50.5]} 7.
b3 {[%clk 0:02:56.8]} 7... O-O {[%clk 0:02:49.8]} 8. O-O {[%clk 0:02:57]} 8...
Bf5 {[%clk 0:02:48.5]} 9. Ne1 {[%clk 0:02:49.1]} 9... e4 {[%clk 0:02:44.2]} 10.
f3 {[%clk 0:02:45.2]} 10... exf3 {[%clk 0:02:42.6]} 11. Qxf3 {[%clk 0:02:42.1]}
11... Bg6 {[%clk 0:02:38.5]} 12. h3 {[%clk 0:02:36.7]} 12... Re8 {[%clk
0:02:37.1]} 13. Bb2 {[%clk 0:02:36.3]} 13... Rb8 {[%clk 0:02:31.8]} 14. g4
{[%clk 0:02:28.8]} 14... h6 {[%clk 0:02:22.7]} 15. Qg3 {[%clk 0:02:23]} 15...
Ba7 {[%clk 0:02:14.2]} 16. Rf2 {[%clk 0:02:10.7]} 16... Nb4 {[%clk 0:02:00.8]}
17. a3 {[%clk 0:01:59.5]} 17... Nd3 {[%clk 0:01:58.5]} 18. Nxd3 {[%clk
0:02:00.1]} 18... Bxd3 {[%clk 0:01:57.7]} 19. h4 {[%clk 0:02:01]} 19... h5
{[%clk 0:01:44.5]} 20. gxh5 {[%clk 0:01:51.3]} 20... Nxh5 {[%clk 0:01:37.1]} 21.
Qg4 {[%clk 0:01:42.8]} 21... Nf6 {[%clk 0:01:31.6]} 22. Qg5 {[%clk 0:01:40.9]}
22... Re5 {[%clk 0:01:28.2]} 23. Qg3 {[%clk 0:01:34.4]} 23... c6 {[%clk
0:01:23]} 24. Bf3 {[%clk 0:01:23.5]} 24... Qe7 {[%clk 0:01:04.8]} 25. Rg2 {[%clk
0:01:10.7]} 25... g6 {[%clk 0:01:03.7]} 26. Ne2 {[%clk 0:01:08.8]} 26... Rf5
{[%clk 0:01:01.2]} 27. Rf1 {[%clk 0:01:05.1]} 27... Re8 {[%clk 0:00:56.1]} 28.
Rff2 {[%clk 0:01:00]} 28... Ne4 {[%clk 0:00:47.1]} 29. Bxe4 {[%clk 0:00:55.4]}
29... Bxe4 {[%clk 0:00:46.1]} 30. Rxf5 {[%clk 0:00:48.1]} 30... Bxf5 {[%clk
0:00:45.8]} 31. h5 {[%clk 0:00:49]} 31... Be4 {[%clk 0:00:34.4]} 32. hxg6 {[%clk
0:00:43.6]} 32... Bxg2 {[%clk 0:00:23.9]} 33. gxf7+ {[%clk 0:00:35.7]} 33...
Kxf7 {[%clk 0:00:23.9]} 34. Qg7+ {[%clk 0:00:32.8]} 34... Ke6 {[%clk 0:00:23.8]}
35. Qg4+ {[%clk 0:00:30.3]} 35... Kf7 {[%clk 0:00:23.7]} 36. Nf4 {[%clk
0:00:23.1]} 36... Rg8 {[%clk 0:00:15.1]} 37. Qh5+ {[%clk 0:00:18.8]} 37... Kf8
{[%clk 0:00:12.4]} 38. Qh6+ {[%clk 0:00:15.9]} 38... Ke8 {[%clk 0:00:12]} 39.
Nxg2 {[%clk 0:00:15]} 39... Qe4 {[%clk 0:00:11.3]} 40. Qh3 {[%clk 0:00:12.9]}
40... Ke7 {[%clk 0:00:09.4]} 41. Kf2 {[%clk 0:00:10.5]} 41... Qg4 {[%clk
0:00:06.7]} 42. Qxg4 {[%clk 0:00:08.5]} 42... Rxg4 {[%clk 0:00:07.6]} 43. Kf3
{[%clk 0:00:09.4]} 43... Rg8 {[%clk 0:00:07.2]} 44. Nf4 {[%clk 0:00:07.4]} 44...
Bb8 {[%clk 0:00:07.5]} 45. a4 {[%clk 0:00:05.3]} 45... Rg1 {[%clk 0:00:07.2]}
46. b4 {[%clk 0:00:03.1]} 46... Rb1 {[%clk 0:00:07.3]} 47. Bc3 {[%clk
0:00:03.7]} 47... Bc7 {[%clk 0:00:07.1]} 48. a5 {[%clk 0:00:03.7]} 48... Kd7
{[%clk 0:00:07.2]} 49. Nd3 {[%clk 0:00:02.1]} 49... Bd8 {[%clk 0:00:08.1]} 50.
e4 {[%clk 0:00:02.1]} 50... Be7 {[%clk 0:00:08.2]} 51. Ke3 {[%clk 0:00:02.4]}
51... Rh1 {[%clk 0:00:08.3]} 52. Ke2 {[%clk 0:00:01.9]} 52... Rh2+ {[%clk
0:00:08.2]} 53. Ke3 {[%clk 0:00:02]} 53... Rh3+ {[%clk 0:00:08.6]} 54. Ke2
{[%clk 0:00:02.5]} 54... Bg5 {[%clk 0:00:09.2]} 55. e5 {[%clk 0:00:02.3]} 55...
Rh2+ {[%clk 0:00:09.5]} 56. Kf3 {[%clk 0:00:02.2]} 56... Rh3+ {[%clk 0:00:10]}
57. Ke2 {[%clk 0:00:02.1]} 57... Ke6 {[%clk 0:00:10.4]} 58. exd6 {[%clk
0:00:02.2]} 58... Kxd6 {[%clk 0:00:10.9]} 59. Nc5 {[%clk 0:00:02.8]} 59... Kc7
{[%clk 0:00:11.4]} 60. Be5+ {[%clk 0:00:03.1]} 60... Kc8 {[%clk 0:00:11.7]} 61.
Ne4 {[%clk 0:00:03.6]} 61... Be7 {[%clk 0:00:11.7]} 62. Bc3 {[%clk 0:00:03.5]}
62... Rh4 {[%clk 0:00:11.8]} 63. d3 {[%clk 0:00:03.8]} 63... Rh2+ {[%clk
0:00:11.6]} 64. Ke3 {[%clk 0:00:04.2]} 64... Rc2 {[%clk 0:00:11.8]} 65. Kd4
{[%clk 0:00:04]} 65... Bf8 {[%clk 0:00:11.1]} 66. Ke3 {[%clk 0:00:03.7]} 66...
Rc1 {[%clk 0:00:10.7]} 67. Kd2 {[%clk 0:00:03.7]} 67... Bh6+ {[%clk 0:00:10.8]}
68. Ke2 {[%clk 0:00:03.7]} 68... Rb1 {[%clk 0:00:11.3]} 69. Nd6+ {[%clk
0:00:03.3]} 69... Kc7 {[%clk 0:00:11.8]} 70. Ne4 {[%clk 0:00:03.1]} 70... Bf8
{[%clk 0:00:11.3]} 71. c5 {[%clk 0:00:03.6]} 71... Kd7 {[%clk 0:00:11.7]} 72.
Kd2 {[%clk 0:00:03.4]} 72... Bh6+ {[%clk 0:00:11.7]} 73. Kc2 {[%clk 0:00:04.3]}
73... Rh1 {[%clk 0:00:11.8]} 74. Nd6 {[%clk 0:00:03.9]} 74... Kc7 {[%clk
0:00:11.7]} 75. Be5 {[%clk 0:00:04.2]} 75... Rh5 {[%clk 0:00:11.6]} 76. d4
{[%clk 0:00:03.8]} 76... Rh3 {[%clk 0:00:09.4]} 77. Nf5+ {[%clk 0:00:02.6]}
77... Kd7 {[%clk 0:00:09.7]} 78. Nd6 {[%clk 0:00:02.9]} 78... Kc7 {[%clk
0:00:10]} 79. b5 {[%clk 0:00:02.3]} 79... axb5 {[%clk 0:00:10]} 80. Nxb5+ {[%clk
0:00:03.2]} 80... Kc8 {[%clk 0:00:10.5]} 81. Nd6+ {[%clk 0:00:03.8]} 81... Kb8
{[%clk 0:00:10.9]} 82. Nc4+ {[%clk 0:00:02]} 82... Ka7 {[%clk 0:00:11]} 83. Bc7
{[%clk 0:00:02.4]} 83... Ka6 {[%clk 0:00:11.1]} 84. Bb6 {[%clk 0:00:02.9]} 84...
Bg7 {[%clk 0:00:10.7]} 85. d5 {[%clk 0:00:02.5]} 85... cxd5 {[%clk 0:00:10.5]}
86. Nd6 {[%clk 0:00:02.8]} 86... d4 {[%clk 0:00:10.9]} 87. Ne8 {[%clk
0:00:02.9]} 87... Kb5 {[%clk 0:00:10.7]} 88. Nxg7 {[%clk 0:00:03.1]} 88... Kc4
{[%clk 0:00:10.4]} 89. Nf5 {[%clk 0:00:03.2]} 89... Rh2+ {[%clk 0:00:10.9]} 90.
Kd1 {[%clk 0:00:03.7]} 90... Kd3 {[%clk 0:00:11.3]} 91. Kc1 {[%clk 0:00:03.6]}
91... Rh1+ {[%clk 0:00:10.9]} 92. Kb2 {[%clk 0:00:03.9]} 92... Kc4 {[%clk
0:00:11.4]} 93. Nxd4 {[%clk 0:00:04.2]} 93... Rh2+ {[%clk 0:00:10.1]} 94. Kc1
{[%clk 0:00:03.7]} 94... Kxd4 {[%clk 0:00:07.8]} 95. c6+ {[%clk 0:00:03.9]}
95... Kc3 {[%clk 0:00:08.3]} 96. Bd4+ {[%clk 0:00:04.3]} 96... Kxd4 {[%clk
0:00:06.3]} 97. cxb7 {[%clk 0:00:04.8]} 97... Rh8 {[%clk 0:00:05.1]} 98. a6
{[%clk 0:00:05.1]} 98... Kc3 {[%clk 0:00:05.5]} 99. Kd1 {[%clk 0:00:05.1]} 99...
Kd3 {[%clk 0:00:05.6]} 100. Ke1 {[%clk 0:00:05.5]} 100... Ke3 {[%clk 0:00:06]}
101. Kf1 {[%clk 0:00:06]} 101... Kf3 {[%clk 0:00:06.4]} 102. Kg1 {[%clk
0:00:06.2]} 102... Kg3 {[%clk 0:00:06.8]} 103. a7 {[%clk 0:00:05.7]} 103... Rd8
{[%clk 0:00:06.7]} 104. b8=Q+ {[%clk 0:00:05.8]} 104... Rxb8 {[%clk 0:00:04.2]}
105. axb8=Q+ {[%clk 0:00:06.7]} 105... Kf3 {[%clk 0:00:04.8]} 106. Qb7+ {[%clk
0:00:06.2]} 106... Ke3 {[%clk 0:00:04.9]} 107. Qc7 {[%clk 0:00:06.9]} 107... Kd3
{[%clk 0:00:05.3]} 108. Qg3+ {[%clk 0:00:07.2]} 108... Ke4 {[%clk 0:00:06.2]}
109. Kg2 {[%clk 0:00:08.1]} 109... Kf5 {[%clk 0:00:06.6]} 110. Qf3+ {[%clk
0:00:09]} 110... Ke6 {[%clk 0:00:07.2]} 111. Kf2 {[%clk 0:00:09.9]} 111... Ke5
{[%clk 0:00:08.1]} 112. Ke3 {[%clk 0:00:10.5]} 112... Kd6 {[%clk 0:00:09]} 113.
Qe4 {[%clk 0:00:11.1]} 113... Kc5 {[%clk 0:00:09.8]} 114. Qe5+ {[%clk
0:00:11.3]} 114... Kc6 {[%clk 0:00:10.7]} 115. Kd4 {[%clk 0:00:11.6]} 115... Kd7
{[%clk 0:00:11.6]} 116. Kd5 {[%clk 0:00:11.9]} 116... Kd8 {[%clk 0:00:11.7]}
117. Kd6 {[%clk 0:00:12.1]} 1-0

[Event "*** Titled Tuesday Blitz"]
[Site "Chess.com"]
[Date "2020.11.24"]
[Round "11"]
[White "woodhy"]
[Black "Quiet_Desperation"]
[Result "1-0"]
[WhiteElo "2459"]
[BlackElo "1730"]
[TimeControl "180+1"]
[EndTime "12:20:20 PST"]
[Termination "woodhy won by resignation"]

1. e4 {[%clk 0:03:00.9]} 1... e6 {[%clk 0:02:55.1]} 2. d4 {[%clk 0:03:00.5]}
2... d5 {[%clk 0:02:44.5]} 3. e5 {[%clk 0:03:00.6]} 3... Qd7 {[%clk 0:02:36.5]}
4. Nf3 {[%clk 0:02:57.1]} 4... b6 {[%clk 0:02:30.8]} 5. b3 {[%clk 0:02:55.8]}
5... Ba6 {[%clk 0:02:22.6]} 6. c4 {[%clk 0:02:43.5]} 6... Ne7 {[%clk 0:02:12.1]}
7. Be3 {[%clk 0:02:41.2]} 7... Nf5 {[%clk 0:02:12]} 8. Nbd2 {[%clk 0:02:38.5]}
8... Nxe3 {[%clk 0:02:08.9]} 9. fxe3 {[%clk 0:02:39.4]} 9... c5 {[%clk
0:02:07.8]} 10. Bd3 {[%clk 0:02:36.6]} 10... Nc6 {[%clk 0:01:54.4]} 11. O-O
{[%clk 0:02:27.9]} 11... Nb4 {[%clk 0:01:48.2]} 12. Be2 {[%clk 0:02:24.2]} 12...
Be7 {[%clk 0:01:44.1]} 13. a3 {[%clk 0:02:14.4]} 13... Nc6 {[%clk 0:01:42.4]}
14. cxd5 {[%clk 0:02:14.4]} 14... Bxe2 {[%clk 0:01:40.3]} 15. dxc6 {[%clk
0:02:13.1]} 15... Qxc6 {[%clk 0:01:40.4]} 16. Qxe2 {[%clk 0:02:11.8]} 1-0

[Event "*** Titled Tuesday Blitz"]
[Site "Chess.com"]
[Date "2020.11.24"]
[Round "11"]
[White "vova-79"]
[Black "Itk04"]
[Result "0-1"]
[WhiteElo "2476"]
[BlackElo "2464"]
[TimeControl "180+1"]
[EndTime "12:20:29 PST"]
[Termination "Itk04 won by resignation"]

1. d4 {[%clk 0:03:00.9]} 1... Nf6 {[%clk 0:02:59.3]} 2. c4 {[%clk 0:03:00.1]}
2... e6 {[%clk 0:02:58.4]} 3. Nc3 {[%clk 0:02:59.4]} 3... Bb4 {[%clk 0:02:58.8]}
4. e3 {[%clk 0:02:59.3]} 4... c5 {[%clk 0:02:57.7]} 5. Ne2 {[%clk 0:02:58.4]}
5... Nc6 {[%clk 0:02:57.6]} 6. a3 {[%clk 0:02:57.6]} 6... Bxc3+ {[%clk 0:02:56]}
7. Nxc3 {[%clk 0:02:58.5]} 7... cxd4 {[%clk 0:02:56.1]} 8. exd4 {[%clk 0:02:59]}
8... d5 {[%clk 0:02:56.7]} 9. c5 {[%clk 0:02:58.9]} 9... O-O {[%clk 0:02:52.2]}
10. Bf4 {[%clk 0:02:57.4]} 10... Ne4 {[%clk 0:02:27.4]} 11. Nxe4 {[%clk
0:02:55.6]} 11... dxe4 {[%clk 0:02:27.5]} 12. Bd6 {[%clk 0:02:56.2]} 12... Re8
{[%clk 0:02:27.2]} 13. Bc4 {[%clk 0:02:56.2]} 13... Qf6 {[%clk 0:02:11.3]} 14.
d5 {[%clk 0:02:54.9]} 14... exd5 {[%clk 0:02:11.5]} 15. Bxd5 {[%clk 0:02:54.3]}
15... e3 {[%clk 0:02:07.1]} 16. f3 {[%clk 0:02:34.2]} 16... Qxb2 {[%clk
0:01:29.7]} 17. Qc1 {[%clk 0:02:33.4]} 17... Qf2+ {[%clk 0:01:26.1]} 18. Kd1
{[%clk 0:02:31.7]} 18... e2+ {[%clk 0:01:24.7]} 0-1

[Event "*** Titled Tuesday Blitz"]
[Site "Chess.com"]
[Date "2020.11.24"]
[Round "11"]
[White "DonPreuss"]
[Black "niki_2003"]
[Result "1-0"]
[WhiteElo "2243"]
[BlackElo "2008"]
[TimeControl "180+1"]
[EndTime "12:20:30 PST"]
[Termination "DonPreuss won by checkmate"]

1. d4 {[%clk 0:03:00.9]} 1... Nf6 {[%clk 0:02:57.9]} 2. Nc3 {[%clk 0:03:00.5]}
2... e6 {[%clk 0:02:57.6]} 3. e4 {[%clk 0:03:00.7]} 3... Bb4 {[%clk 0:02:57.2]}
4. e5 {[%clk 0:03:00.6]} 4... Nd5 {[%clk 0:02:56.9]} 5. Bd2 {[%clk 0:03:00.9]}
5... Bxc3 {[%clk 0:02:52.6]} 6. bxc3 {[%clk 0:03:01]} 6... c5 {[%clk 0:02:49.9]}
7. Bd3 {[%clk 0:03:00.4]} 7... b6 {[%clk 0:02:47.8]} 8. Qg4 {[%clk 0:02:57.1]}
8... Kf8 {[%clk 0:02:46.3]} 9. Nh3 {[%clk 0:02:51.2]} 9... Qc7 {[%clk 0:02:42]}
10. O-O {[%clk 0:02:49.2]} 10... Bb7 {[%clk 0:02:40.7]} 11. f4 {[%clk
0:02:48.8]} 11... Ne7 {[%clk 0:02:37.5]} 12. f5 {[%clk 0:02:42.6]} 12... Qc6
{[%clk 0:02:29.9]} 13. fxe6 {[%clk 0:02:36.9]} 13... Qxe6 {[%clk 0:02:25.8]} 14.
Qh5 {[%clk 0:01:56]} 14... cxd4 {[%clk 0:02:12.8]} 15. Ng5 {[%clk 0:01:52]}
15... Qd5 {[%clk 0:02:05.4]} 16. Rxf7+ {[%clk 0:01:50.6]} 16... Kg8 {[%clk
0:02:02.6]} 17. Bxh7+ {[%clk 0:01:46]} 17... Rxh7 {[%clk 0:02:00.9]} 18. Qxh7#
{[%clk 0:01:45.9]} 1-0

[Event "*** Titled Tuesday Blitz"]
[Site "Chess.com"]
[Date "2020.11.24"]
[Round "11"]
[White "louis198"]
[Black "aa175"]
[Result "0-1"]
[WhiteElo "2543"]
[BlackElo "2330"]
[TimeControl "180+1"]
[EndTime "12:21:28 PST"]
[Termination "aa175 won by resignation"]

1. d4 {[%clk 0:03:00.9]} 1... e5 {[%clk 0:03:00.9]} 2. c4 {[%clk 0:03:01.4]}
2... exd4 {[%clk 0:03:01.1]} 3. e3 {[%clk 0:03:00.4]} 3... Nc6 {[%clk 0:03:02]}
4. exd4 {[%clk 0:03:00.3]} 4... Nf6 {[%clk 0:03:02.1]} 5. Nf3 {[%clk 0:03:00.2]}
5... d5 {[%clk 0:03:01.9]} 6. c5 {[%clk 0:02:59.5]} 6... Ne4 {[%clk 0:03:02]} 7.
Bb5 {[%clk 0:02:56.9]} 7... Bg4 {[%clk 0:03:01.3]} 8. O-O {[%clk 0:02:54]} 8...
Qf6 {[%clk 0:02:59.8]} 9. h3 {[%clk 0:02:36.6]} 9... Bxf3 {[%clk 0:02:59.7]} 10.
gxf3 {[%clk 0:02:36.7]} 10... Ng5 {[%clk 0:02:51.9]} 11. Re1+ {[%clk 0:02:36.8]}
11... Kd8 {[%clk 0:02:51.9]} 12. Kg2 {[%clk 0:02:36.6]} 12... Nxf3 {[%clk
0:02:49.2]} 13. Qxf3 {[%clk 0:01:43.5]} 13... Qxf3+ {[%clk 0:02:50.1]} 14. Kxf3
{[%clk 0:01:44]} 14... Nxd4+ {[%clk 0:02:49.2]} 15. Ke3 {[%clk 0:01:44.2]} 15...
Bxc5 {[%clk 0:02:42.6]} 16. Kd3 {[%clk 0:01:41]} 16... Nxb5 {[%clk 0:02:40.6]}
17. a4 {[%clk 0:01:40.5]} 17... Nd6 {[%clk 0:02:37.5]} 18. Nc3 {[%clk
0:01:40.6]} 18... c6 {[%clk 0:02:33.6]} 19. Bf4 {[%clk 0:01:29.4]} 19... Kd7
{[%clk 0:02:23.2]} 20. f3 {[%clk 0:01:24.8]} 20... Rhe8 {[%clk 0:02:21.8]} 21.
a5 {[%clk 0:01:20.9]} 21... Rxe1 {[%clk 0:02:17.7]} 22. Rxe1 {[%clk 0:01:18.3]}
22... Re8 {[%clk 0:02:18]} 23. Rf1 {[%clk 0:01:18.2]} 23... Nc4 {[%clk 0:02:18]}
24. b3 {[%clk 0:01:17.8]} 24... Nxa5 {[%clk 0:02:17]} 25. Na4 {[%clk 0:01:17.8]}
25... Nxb3 {[%clk 0:02:08.1]} 26. Rb1 {[%clk 0:01:11.1]} 26... b5 {[%clk
0:01:57]} 0-1

[Event "*** Titled Tuesday Blitz"]
[Site "Chess.com"]
[Date "2020.11.24"]
[Round "11"]
[White "OMGCovid-19"]
[Black "politeplayer"]
[Result "0-1"]
[WhiteElo "1871"]
[BlackElo "2239"]
[TimeControl "180+1"]
[EndTime "12:21:46 PST"]
[Termination "politeplayer won by resignation"]

1. e4 {[%clk 0:03:00.9]} 1... e5 {[%clk 0:02:58.9]} 2. Nf3 {[%clk 0:03:01]} 2...
Nf6 {[%clk 0:02:59]} 3. Nxe5 {[%clk 0:03:00.1]} 3... d6 {[%clk 0:02:58.7]} 4.
Nf3 {[%clk 0:03:00.6]} 4... Nxe4 {[%clk 0:02:58.1]} 5. Nc3 {[%clk 0:03:01.5]}
5... Nxc3 {[%clk 0:02:58.5]} 6. dxc3 {[%clk 0:03:01.7]} 6... Be7 {[%clk
0:02:59]} 7. Bd3 {[%clk 0:03:01.9]} 7... O-O {[%clk 0:02:59.2]} 8. Bf4 {[%clk
0:03:02]} 8... Nd7 {[%clk 0:02:59.3]} 9. Qd2 {[%clk 0:03:01.6]} 9... b6 {[%clk
0:02:57.3]} 10. O-O-O {[%clk 0:03:01.9]} 10... Bb7 {[%clk 0:02:57]} 11. Ng5
{[%clk 0:03:01.4]} 11... h6 {[%clk 0:02:49.7]} 12. Nf3 {[%clk 0:03:00.8]} 12...
Bxf3 {[%clk 0:02:40.5]} 13. gxf3 {[%clk 0:02:59.5]} 13... Bg5 {[%clk 0:02:40.9]}
14. Rhg1 {[%clk 0:02:58.5]} 14... Bxf4 {[%clk 0:02:30.7]} 15. Qxf4 {[%clk
0:02:57.6]} 15... Qf6 {[%clk 0:02:31.1]} 16. Qe4 {[%clk 0:02:54]} 16... g6
{[%clk 0:02:14.8]} 17. h4 {[%clk 0:02:53]} 17... Nc5 {[%clk 0:02:04.2]} 18. Qe3
{[%clk 0:02:42.9]} 18... Nxd3+ {[%clk 0:01:54.1]} 19. cxd3 {[%clk 0:02:30.5]}
19... Kh7 {[%clk 0:01:26.3]} 20. h5 {[%clk 0:02:30.1]} 20... Rae8 {[%clk
0:01:25.1]} 21. Qd2 {[%clk 0:02:20.3]} 21... Qxf3 {[%clk 0:01:19.5]} 22. hxg6+
{[%clk 0:02:14.9]} 22... fxg6 {[%clk 0:01:19.1]} 23. Rh1 {[%clk 0:02:15.3]}
23... Qf4 {[%clk 0:01:17.4]} 24. Qxf4 {[%clk 0:02:09.1]} 24... Rxf4 {[%clk
0:01:16.9]} 25. Rde1 {[%clk 0:02:09.6]} 25... Rxe1+ {[%clk 0:01:11.3]} 26. Rxe1
{[%clk 0:02:08.9]} 26... h5 {[%clk 0:01:10.6]} 27. Re7+ {[%clk 0:02:08.7]} 27...
Kh6 {[%clk 0:01:11]} 28. Rxc7 {[%clk 0:02:08.5]} 28... h4 {[%clk 0:01:07.8]} 29.
Rxa7 {[%clk 0:02:04.8]} 29... h3 {[%clk 0:01:06.5]} 30. Re7 {[%clk 0:02:05.1]}
30... h2 {[%clk 0:01:04.5]} 31. Re1 {[%clk 0:02:05.2]} 31... Rxf2 {[%clk
0:01:03.8]} 32. Rh1 {[%clk 0:02:05.5]} 32... Rg2 {[%clk 0:01:03.8]} 0-1

[Event "*** Titled Tuesday Blitz"]
[Site "Chess.com"]
[Date "2020.11.24"]
[Round "11"]
[White "rugbyclub"]
[Black "Cambek64"]
[Result "0-1"]
[WhiteElo "2188"]
[BlackElo "2300"]
[TimeControl "180+1"]
[EndTime "12:22:05 PST"]
[Termination "Cambek64 won by resignation"]

1. d4 {[%clk 0:03:00.9]} 1... d6 {[%clk 0:02:53.4]} 2. e4 {[%clk 0:02:57.7]}
2... e5 {[%clk 0:02:51.2]} 3. Nf3 {[%clk 0:02:56.6]} 3... Nc6 {[%clk 0:02:50.2]}
4. Bb5 {[%clk 0:02:53.4]} 4... exd4 {[%clk 0:02:47.5]} 5. Qxd4 {[%clk
0:02:47.6]} 5... Bd7 {[%clk 0:02:48]} 6. Bxc6 {[%clk 0:02:46.9]} 6... Bxc6
{[%clk 0:02:44.2]} 7. Nc3 {[%clk 0:02:47.2]} 7... Nf6 {[%clk 0:02:44]} 8. Bg5
{[%clk 0:02:46.5]} 8... Be7 {[%clk 0:02:44.4]} 9. O-O {[%clk 0:02:46.3]} 9...
O-O {[%clk 0:02:44.3]} 10. Rfe1 {[%clk 0:02:46.2]} 10... Nd7 {[%clk 0:02:44.2]}
11. Bxe7 {[%clk 0:02:41.3]} 11... Qxe7 {[%clk 0:02:44.3]} 12. Nd5 {[%clk
0:02:41.7]} 12... Bxd5 {[%clk 0:02:39.5]} 13. exd5 {[%clk 0:02:41.3]} 13... Qf6
{[%clk 0:02:39.8]} 14. c4 {[%clk 0:02:32.3]} 14... a6 {[%clk 0:02:23.7]} 15.
Qxf6 {[%clk 0:02:21.4]} 15... Nxf6 {[%clk 0:02:21]} 16. Re7 {[%clk 0:02:21.3]}
16... Rac8 {[%clk 0:02:21.3]} 17. a4 {[%clk 0:02:03.5]} 17... Rfe8 {[%clk
0:02:09.5]} 18. Rae1 {[%clk 0:02:00.1]} 18... Kf8 {[%clk 0:02:08.2]} 19. Rxe8+
{[%clk 0:01:53]} 19... Nxe8 {[%clk 0:02:08.7]} 20. Kf1 {[%clk 0:01:44.6]} 20...
Nf6 {[%clk 0:02:05.4]} 21. Nd4 {[%clk 0:01:42.2]} 21... g6 {[%clk 0:02:02.7]}
22. f3 {[%clk 0:01:39.7]} 22... c6 {[%clk 0:01:58.1]} 23. dxc6 {[%clk
0:01:37.4]} 23... bxc6 {[%clk 0:01:58.4]} 24. Kf2 {[%clk 0:01:34.5]} 24... c5
{[%clk 0:01:57.8]} 25. Nb3 {[%clk 0:01:20.2]} 25... Rb8 {[%clk 0:01:57.9]} 26.
Re3 {[%clk 0:01:20.5]} 26... Rb4 {[%clk 0:01:55.5]} 27. Rd3 {[%clk 0:01:16.9]}
27... Ke7 {[%clk 0:01:53.5]} 28. Na5 {[%clk 0:01:10.4]} 28... Rxa4 {[%clk
0:01:53.1]} 29. Nc6+ {[%clk 0:01:09.2]} 29... Kd7 {[%clk 0:01:50]} 30. Ne5+
{[%clk 0:01:08.8]} 30... Ke6 {[%clk 0:01:49.8]} 31. Nc6 {[%clk 0:01:01.1]} 31...
Rxc4 {[%clk 0:01:48.4]} 0-1

[Event "*** Titled Tuesday Blitz"]
[Site "Chess.com"]
[Date "2020.11.24"]
[Round "11"]
[White "Jospem"]
[Black "vugarrasulov"]
[Result "1/2-1/2"]
[WhiteElo "3057"]
[BlackElo "2904"]
[TimeControl "180+1"]
[EndTime "12:22:16 PST"]
[Termination "Game drawn by agreement"]

1. e4 {[%clk 0:03:00.9]} 1... e6 {[%clk 0:02:58.7]} 2. d4 {[%clk 0:03:01]} 2...
d5 {[%clk 0:02:58.5]} 3. Nc3 {[%clk 0:03:01.9]} 3... Bb4 {[%clk 0:02:55.1]} 4.
exd5 {[%clk 0:03:02.1]} 4... exd5 {[%clk 0:02:53.6]} 5. Bd3 {[%clk 0:03:02.6]}
5... Ne7 {[%clk 0:02:45]} 6. Ne2 {[%clk 0:03:00.3]} 6... O-O {[%clk 0:02:41.4]}
7. O-O {[%clk 0:03:00.8]} 7... c6 {[%clk 0:02:38.8]} 8. Ng3 {[%clk 0:02:58.5]}
8... Nd7 {[%clk 0:02:34.4]} 9. Bf4 {[%clk 0:02:13.5]} 9... Ng6 {[%clk
0:02:31.3]} 10. Be3 {[%clk 0:02:10.8]} 10... Nf6 {[%clk 0:02:27.9]} 11. h3
{[%clk 0:02:11.4]} 11... Bd6 {[%clk 0:02:25.5]} 12. Qd2 {[%clk 0:02:09.4]} 12...
Qc7 {[%clk 0:02:17.4]} 13. Nce2 {[%clk 0:02:08.5]} 13... Bd7 {[%clk 0:02:11.5]}
14. b3 {[%clk 0:02:05.7]} 14... Rae8 {[%clk 0:02:10.2]} 15. c4 {[%clk
0:02:04.1]} 15... Qd8 {[%clk 0:01:57.1]} 16. Nf5 {[%clk 0:01:37.1]} 16... Bb8
{[%clk 0:01:52.5]} 17. Neg3 {[%clk 0:01:28.7]} 17... Qc7 {[%clk 0:01:43.8]} 18.
Rfe1 {[%clk 0:01:26.9]} 18... Ne4 {[%clk 0:01:39.9]} 19. Bxe4 {[%clk 0:01:10.6]}
19... dxe4 {[%clk 0:01:40.8]} 1/2-1/2

[Event "*** Titled Tuesday Blitz"]
[Site "Chess.com"]
[Date "2020.11.24"]
[Round "11"]
[White "Euwe1234"]
[Black "vovachesss"]
[Result "0-1"]
[WhiteElo "2522"]
[BlackElo "2669"]
[TimeControl "180+1"]
[EndTime "12:22:16 PST"]
[Termination "vovachesss won by resignation"]

1. e4 {[%clk 0:03:00.9]} 1... c6 {[%clk 0:02:57.7]} 2. Nc3 {[%clk 0:02:59.4]}
2... d5 {[%clk 0:02:58.2]} 3. Nf3 {[%clk 0:03:00.3]} 3... dxe4 {[%clk
0:02:58.2]} 4. Nxe4 {[%clk 0:03:01.2]} 4... Nf6 {[%clk 0:02:59.1]} 5. Nxf6+
{[%clk 0:03:00.9]} 5... exf6 {[%clk 0:03:00]} 6. d4 {[%clk 0:03:01.3]} 6... Bd6
{[%clk 0:03:00.7]} 7. c3 {[%clk 0:02:59.9]} 7... O-O {[%clk 0:03:01.6]} 8. Be3
{[%clk 0:03:00.5]} 8... Re8 {[%clk 0:03:02.3]} 9. Bd3 {[%clk 0:03:00.7]} 9...
Nd7 {[%clk 0:03:02.2]} 10. Qc2 {[%clk 0:03:00.7]} 10... Nf8 {[%clk 0:03:02.2]}
11. O-O-O {[%clk 0:03:00.5]} 11... a5 {[%clk 0:03:00.9]} 12. h3 {[%clk
0:02:59.1]} 12... b5 {[%clk 0:03:00.2]} 13. g4 {[%clk 0:02:58.7]} 13... Be6
{[%clk 0:02:59.3]} 14. Kb1 {[%clk 0:02:57.9]} 14... Bd5 {[%clk 0:02:52.9]} 15.
Nh4 {[%clk 0:02:53.9]} 15... Bxh1 {[%clk 0:02:49.5]} 16. Rxh1 {[%clk 0:02:54.8]}
16... Qc7 {[%clk 0:02:38.9]} 17. Qd2 {[%clk 0:02:54.4]} 17... Ng6 {[%clk
0:02:34.9]} 18. Nf5 {[%clk 0:02:54.1]} 18... Bf4 {[%clk 0:02:34.5]} 19. h4
{[%clk 0:02:54.4]} 19... Bxe3 {[%clk 0:02:32.1]} 20. fxe3 {[%clk 0:02:55.3]}
20... Ne7 {[%clk 0:02:31.6]} 21. Rg1 {[%clk 0:02:45.4]} 21... Nxf5 {[%clk
0:02:27.1]} 22. gxf5 {[%clk 0:02:46.3]} 22... Kh8 {[%clk 0:02:27.5]} 23. e4
{[%clk 0:02:46.2]} 23... c5 {[%clk 0:02:21.6]} 24. h5 {[%clk 0:02:43.4]} 24...
b4 {[%clk 0:02:16]} 25. h6 {[%clk 0:02:40.6]} 25... g6 {[%clk 0:02:11.3]} 26.
Qf2 {[%clk 0:02:36.9]} 26... g5 {[%clk 0:01:55.2]} 27. e5 {[%clk 0:02:27.9]}
27... bxc3 {[%clk 0:01:52.5]} 28. exf6 {[%clk 0:02:25.7]} 28... Rab8 {[%clk
0:01:46.9]} 29. b3 {[%clk 0:02:24.9]} 29... c4 {[%clk 0:01:45.1]} 30. Qg2 {[%clk
0:01:47]} 30... cxd3 {[%clk 0:01:32.2]} 31. Qxg5 {[%clk 0:01:46.3]} 31... c2+
{[%clk 0:01:21.7]} 32. Kc1 {[%clk 0:01:22.5]} 32... Rg8 {[%clk 0:01:16.9]} 0-1